[Event "*** Titled Tuesday Blitz"]
[Site "Chess.com"]
[Date "2020.12.01"]
[Round "6"]
[White "tk22h"]
[Black "AradNazari"]
[Result "1-0"]
[WhiteElo "2338"]
[BlackElo "2423"]
[TimeControl "180+1"]
[EndTime "11:06:57 PST"]
[Termination "tk22h won on time"]

1. d4 {[%clk 0:03:00.9]} 1... Nf6 {[%clk 0:02:58.7]} 2. Nf3 {[%clk 0:03:00.3]}
2... e6 {[%clk 0:02:57.8]} 3. g3 {[%clk 0:03:00]} 3... Be7 {[%clk 0:02:56.5]} 4.
Bg2 {[%clk 0:02:59.9]} 4... O-O {[%clk 0:02:57.4]} 5. O-O {[%clk 0:03:00.4]}
5... d5 {[%clk 0:02:42.2]} 6. c4 {[%clk 0:02:59.8]} 6... c6 {[%clk 0:02:36.6]}
7. Qc2 {[%clk 0:02:58.9]} 7... Nbd7 {[%clk 0:02:33.4]} 8. b3 {[%clk 0:02:58.9]}
8... b6 {[%clk 0:02:21.5]} 9. Bb2 {[%clk 0:02:58.6]} 9... Bb7 {[%clk 0:02:20]}
10. Nbd2 {[%clk 0:02:58.7]} 10... Rc8 {[%clk 0:02:07.5]} 11. e4 {[%clk
0:02:57.8]} 11... dxe4 {[%clk 0:02:06.6]} 12. Nxe4 {[%clk 0:02:58]} 12... c5
{[%clk 0:02:06.6]} 13. Nxf6+ {[%clk 0:02:58.1]} 13... Bxf6 {[%clk 0:02:01.8]}
14. Rad1 {[%clk 0:02:58.5]} 14... Qe7 {[%clk 0:01:57.2]} 15. Rfe1 {[%clk
0:02:58]} 15... Rfd8 {[%clk 0:01:56.4]} 16. d5 {[%clk 0:02:57.8]} 16... Bxb2
{[%clk 0:01:49]} 17. Qxb2 {[%clk 0:02:57.7]} 17... Nf8 {[%clk 0:01:47]} 18. h4
{[%clk 0:02:52.2]} 18... Qc7 {[%clk 0:01:38.1]} 19. Qc2 {[%clk 0:02:40.6]} 19...
exd5 {[%clk 0:01:35.1]} 20. cxd5 {[%clk 0:02:39]} 20... Bxd5 {[%clk 0:01:31.1]}
21. Ng5 {[%clk 0:02:39]} 21... Bxg2 {[%clk 0:01:25.7]} 22. Kxg2 {[%clk
0:02:39.9]} 22... h6 {[%clk 0:01:22.8]} 23. Ne4 {[%clk 0:02:37]} 23... Qb7
{[%clk 0:01:19]} 24. Kg1 {[%clk 0:02:37.1]} 24... Rxd1 {[%clk 0:01:15.2]} 25.
Rxd1 {[%clk 0:02:36.8]} 25... Qa6 {[%clk 0:01:13.8]} 26. Rd6 {[%clk 0:02:24.4]}
26... Re8 {[%clk 0:01:09.1]} 27. h5 {[%clk 0:02:05.1]} 27... Qa5 {[%clk
0:00:57.7]} 28. Rd1 {[%clk 0:01:57.7]} 28... Qb4 {[%clk 0:00:52.2]} 29. Nd6
{[%clk 0:01:55.2]} 29... Re1+ {[%clk 0:00:48.2]} 30. Rxe1 {[%clk 0:01:55.2]}
30... Qxe1+ {[%clk 0:00:49.1]} 31. Kg2 {[%clk 0:01:55.4]} 31... Qe6 {[%clk
0:00:48.5]} 32. Nf5 {[%clk 0:01:50.5]} 32... Qd5+ {[%clk 0:00:45.4]} 33. Kh2
{[%clk 0:01:49]} 33... Qf3 {[%clk 0:00:39.9]} 34. Ne7+ {[%clk 0:01:40]} 34...
Kh8 {[%clk 0:00:39.5]} 35. Qf5 {[%clk 0:01:33.1]} 35... Qxf5 {[%clk 0:00:33.6]}
36. Nxf5 {[%clk 0:01:34]} 36... Nd7 {[%clk 0:00:29.9]} 37. Nd6 {[%clk
0:01:33.7]} 37... Kg8 {[%clk 0:00:30]} 38. Kg2 {[%clk 0:01:32.2]} 38... Kf8
{[%clk 0:00:28.6]} 39. Kf3 {[%clk 0:01:32.2]} 39... a6 {[%clk 0:00:27]} 40. Ke4
{[%clk 0:01:28.9]} 40... Ke7 {[%clk 0:00:26.9]} 41. Nf5+ {[%clk 0:01:29]} 41...
Kf6 {[%clk 0:00:26.3]} 42. g4 {[%clk 0:01:29.3]} 42... Ne5 {[%clk 0:00:19.4]}
43. f3 {[%clk 0:01:26.7]} 43... Nc6 {[%clk 0:00:17.8]} 44. Nd6 {[%clk
0:01:18.3]} 44... Nb4 {[%clk 0:00:16.4]} 45. a4 {[%clk 0:01:17.8]} 45... Nc2
{[%clk 0:00:14.9]} 46. Nc8 {[%clk 0:01:13]} 46... b5 {[%clk 0:00:14.1]} 47. axb5
{[%clk 0:01:12.6]} 47... axb5 {[%clk 0:00:15]} 48. Nd6 {[%clk 0:00:58.5]} 48...
Nd4 {[%clk 0:00:13.3]} 49. b4 {[%clk 0:00:57.3]} 49... Ne6 {[%clk 0:00:10.6]}
50. bxc5 {[%clk 0:00:55]} 50... Nxc5+ {[%clk 0:00:11.5]} 51. Kd5 {[%clk
0:00:55.3]} 51... Nd3 {[%clk 0:00:10.7]} 52. Nxb5 {[%clk 0:00:54.8]} 52... Ne5
{[%clk 0:00:08.5]} 53. Ke4 {[%clk 0:00:54.4]} 53... Nd7 {[%clk 0:00:08.8]} 54.
Nc3 {[%clk 0:00:52]} 54... Nc5+ {[%clk 0:00:09.2]} 55. Kf4 {[%clk 0:00:51.1]}
55... Ne6+ {[%clk 0:00:09.4]} 56. Ke4 {[%clk 0:00:51]} 56... Ng5+ {[%clk
0:00:09.4]} 57. Kf4 {[%clk 0:00:51.1]} 57... Ne6+ {[%clk 0:00:09.9]} 58. Ke4
{[%clk 0:00:51.2]} 58... Nc5+ {[%clk 0:00:10.6]} 59. Kf4 {[%clk 0:00:51.4]}
59... Ke6 {[%clk 0:00:11.2]} 60. Ne4 {[%clk 0:00:46.4]} 60... Nd3+ {[%clk
0:00:09.5]} 61. Ke3 {[%clk 0:00:46.3]} 61... Ne5 {[%clk 0:00:09.4]} 62. Kf4
{[%clk 0:00:46.5]} 62... Nd3+ {[%clk 0:00:08.9]} 63. Ke3 {[%clk 0:00:46.8]}
63... Ne5 {[%clk 0:00:09.2]} 64. Kf4 {[%clk 0:00:47.2]} 64... Nd7 {[%clk
0:00:09.2]} 65. Nf2 {[%clk 0:00:45.1]} 65... Nf6 {[%clk 0:00:08]} 66. Ne4 {[%clk
0:00:40.2]} 66... Nd5+ {[%clk 0:00:08.1]} 67. Kg3 {[%clk 0:00:40.4]} 67... Ke5
{[%clk 0:00:08.6]} 68. Nc5 {[%clk 0:00:40.4]} 68... Nf6 {[%clk 0:00:07.6]} 69.
Nd3+ {[%clk 0:00:38.8]} 69... Kd4 {[%clk 0:00:08.1]} 70. Nf4 {[%clk 0:00:38.8]}
70... Ke3 {[%clk 0:00:08.7]} 71. Ng2+ {[%clk 0:00:38.7]} 71... Ke2 {[%clk
0:00:07.6]} 72. Nf4+ {[%clk 0:00:38.8]} 72... Ke3 {[%clk 0:00:08.1]} 73. Ng2+
{[%clk 0:00:39.1]} 73... Kd4 {[%clk 0:00:08.7]} 74. Kf4 {[%clk 0:00:38.6]} 74...
Nd5+ {[%clk 0:00:08.9]} 75. Kf5 {[%clk 0:00:34.8]} 75... Ne3+ {[%clk 0:00:09.3]}
76. Nxe3 {[%clk 0:00:32.7]} 76... Kxe3 {[%clk 0:00:10.2]} 77. f4 {[%clk
0:00:33.1]} 77... Kf3 {[%clk 0:00:08.6]} 78. g5 {[%clk 0:00:32.9]} 78... hxg5
{[%clk 0:00:08.8]} 79. fxg5 {[%clk 0:00:33]} 79... Ke3 {[%clk 0:00:05.5]} 80. h6
{[%clk 0:00:33.2]} 80... gxh6 {[%clk 0:00:05.9]} 81. gxh6 {[%clk 0:00:33.5]} 1-0

[Event "*** Titled Tuesday Blitz"]
[Site "Chess.com"]
[Date "2020.12.01"]
[Round "6"]
[White "JiiHart"]
[Black "Tejas_Rama"]
[Result "1-0"]
[WhiteElo "2106"]
[BlackElo "2217"]
[TimeControl "180+1"]
[EndTime "11:06:57 PST"]
[Termination "JiiHart won by checkmate"]

1. e4 {[%clk 0:03:00.9]} 1... e5 {[%clk 0:02:57.6]} 2. Nf3 {[%clk 0:03:00.5]}
2... Nc6 {[%clk 0:02:57.3]} 3. d4 {[%clk 0:03:00.7]} 3... exd4 {[%clk
0:02:55.9]} 4. Nxd4 {[%clk 0:03:01.6]} 4... Bc5 {[%clk 0:02:54.7]} 5. Be3 {[%clk
0:03:01.6]} 5... Nxd4 {[%clk 0:02:40.5]} 6. Bxd4 {[%clk 0:03:01.1]} 6... Bxd4
{[%clk 0:02:41.4]} 7. Qxd4 {[%clk 0:03:01.3]} 7... Qf6 {[%clk 0:02:42.3]} 8. e5
{[%clk 0:03:01.4]} 8... Qb6 {[%clk 0:02:41]} 9. Qxb6 {[%clk 0:02:44.7]} 9...
axb6 {[%clk 0:02:41.9]} 10. Bc4 {[%clk 0:02:43.8]} 10... Ne7 {[%clk 0:02:39.9]}
11. f4 {[%clk 0:02:42.6]} 11... h5 {[%clk 0:02:27.4]} 12. O-O {[%clk 0:02:41.6]}
12... Nf5 {[%clk 0:02:26.8]} 13. Re1 {[%clk 0:02:32.3]} 13... Rh6 {[%clk
0:02:17.7]} 14. Nd2 {[%clk 0:02:23.3]} 14... Kf8 {[%clk 0:02:04.6]} 15. Bd3
{[%clk 0:02:19.5]} 15... d6 {[%clk 0:02:02.8]} 16. exd6 {[%clk 0:02:12.2]} 16...
Nxd6 {[%clk 0:02:01.3]} 17. a3 {[%clk 0:02:02.3]} 17... Bf5 {[%clk 0:01:58.2]}
18. Ne4 {[%clk 0:01:52.7]} 18... Nxe4 {[%clk 0:01:41.7]} 19. Bxe4 {[%clk
0:01:52.1]} 19... Bxe4 {[%clk 0:01:41.4]} 20. Rxe4 {[%clk 0:01:52.3]} 20... Rc6
{[%clk 0:01:39.6]} 21. c3 {[%clk 0:01:51.6]} 21... Rd8 {[%clk 0:01:37.1]} 22.
Rae1 {[%clk 0:01:49.8]} 22... g6 {[%clk 0:01:35]} 23. Re7 {[%clk 0:01:29.4]}
23... Rd2 {[%clk 0:01:32.1]} 24. R1e2 {[%clk 0:01:24.4]} 24... Rd1+ {[%clk
0:01:12.2]} 25. Kf2 {[%clk 0:01:24]} 25... Rd3 {[%clk 0:01:12.2]} 26. R2e3
{[%clk 0:01:15.5]} 26... Rd2+ {[%clk 0:01:06.7]} 27. Re2 {[%clk 0:01:15.3]}
27... Rxe2+ {[%clk 0:00:57.5]} 28. Rxe2 {[%clk 0:01:14.6]} 28... Rd6 {[%clk
0:00:58.1]} 29. Ke1 {[%clk 0:01:08.5]} 29... Kg7 {[%clk 0:00:55.9]} 30. Rd2
{[%clk 0:01:06.8]} 30... Re6+ {[%clk 0:00:55.6]} 31. Kf2 {[%clk 0:01:05.7]}
31... Kf6 {[%clk 0:00:55.4]} 32. Rd7 {[%clk 0:01:04.6]} 32... Rc6 {[%clk
0:00:52.8]} 33. g3 {[%clk 0:00:59.2]} 33... Ke6 {[%clk 0:00:52]} 34. Rd8 {[%clk
0:00:58.3]} 34... Rd6 {[%clk 0:00:51.8]} 35. Rxd6+ {[%clk 0:00:52.6]} 35... Kxd6
{[%clk 0:00:52.7]} 36. Ke3 {[%clk 0:00:50.8]} 36... Kd5 {[%clk 0:00:52]} 37. Kd3
{[%clk 0:00:47.1]} 37... b5 {[%clk 0:00:52.2]} 38. b3 {[%clk 0:00:46.7]} 38...
Kc5 {[%clk 0:00:49.4]} 39. Ke4 {[%clk 0:00:41.3]} 39... Kd6 {[%clk 0:00:48.4]}
40. h3 {[%clk 0:00:38.9]} 40... f5+ {[%clk 0:00:43.8]} 41. Kd4 {[%clk
0:00:37.7]} 41... c5+ {[%clk 0:00:43.8]} 42. Kd3 {[%clk 0:00:32.1]} 42... Kd5
{[%clk 0:00:41.2]} 43. c4+ {[%clk 0:00:29.4]} 43... Kc6 {[%clk 0:00:33.5]} 44.
cxb5+ {[%clk 0:00:19.1]} 44... Kxb5 {[%clk 0:00:34.4]} 45. Kc3 {[%clk 0:00:18]}
45... Kc6 {[%clk 0:00:33.9]} 46. a4 {[%clk 0:00:16.8]} 46... Kd5 {[%clk
0:00:27.8]} 47. a5 {[%clk 0:00:13.5]} 47... Kd6 {[%clk 0:00:22.5]} 48. Kc4
{[%clk 0:00:11.1]} 48... Kc6 {[%clk 0:00:22.9]} 49. b4 {[%clk 0:00:10.4]} 49...
cxb4 {[%clk 0:00:21]} 50. Kxb4 {[%clk 0:00:10.5]} 50... Kd6 {[%clk 0:00:21.5]}
51. Kb5 {[%clk 0:00:10.5]} 51... Kc7 {[%clk 0:00:22]} 52. Kc5 {[%clk 0:00:10.8]}
52... Kd7 {[%clk 0:00:20.7]} 53. Kd5 {[%clk 0:00:10.2]} 53... Kc7 {[%clk
0:00:20.6]} 54. Kc5 {[%clk 0:00:10.5]} 54... Kd7 {[%clk 0:00:21]} 55. Kd5 {[%clk
0:00:10.9]} 55... Kc8 {[%clk 0:00:21.5]} 56. Kd6 {[%clk 0:00:09.6]} 56... Kb8
{[%clk 0:00:21.9]} 57. Ke6 {[%clk 0:00:09.4]} 57... Ka7 {[%clk 0:00:21.8]} 58.
Kf6 {[%clk 0:00:09.6]} 58... Ka6 {[%clk 0:00:22.4]} 59. Kxg6 {[%clk 0:00:09.9]}
59... Kxa5 {[%clk 0:00:23]} 60. Kxf5 {[%clk 0:00:10.2]} 60... b5 {[%clk
0:00:23.1]} 61. Kg5 {[%clk 0:00:10.1]} 61... b4 {[%clk 0:00:23.5]} 62. f5 {[%clk
0:00:09.7]} 62... b3 {[%clk 0:00:24]} 63. f6 {[%clk 0:00:10.2]} 63... b2 {[%clk
0:00:24.6]} 64. f7 {[%clk 0:00:10.7]} 64... b1=Q {[%clk 0:00:24.8]} 65. f8=Q
{[%clk 0:00:11.2]} 65... Qg1 {[%clk 0:00:18.9]} 66. Qf5+ {[%clk 0:00:10.4]}
66... Kb4 {[%clk 0:00:18.4]} 67. Kxh5 {[%clk 0:00:10.4]} 67... Qb6 {[%clk
0:00:16.2]} 68. Qf4+ {[%clk 0:00:08.7]} 68... Kc3 {[%clk 0:00:15.6]} 69. h4
{[%clk 0:00:09]} 69... Qe6 {[%clk 0:00:14.7]} 70. Qg5 {[%clk 0:00:07.6]} 70...
Qf7+ {[%clk 0:00:14.1]} 71. Kg4 {[%clk 0:00:07.5]} 71... Kd3 {[%clk 0:00:12.7]}
72. Qf5+ {[%clk 0:00:07.2]} 72... Qxf5+ {[%clk 0:00:11.4]} 73. Kxf5 {[%clk
0:00:08]} 73... Ke3 {[%clk 0:00:12.3]} 74. h5 {[%clk 0:00:08.4]} 74... Kf3
{[%clk 0:00:13.2]} 75. h6 {[%clk 0:00:09]} 75... Kxg3 {[%clk 0:00:14.1]} 76. h7
{[%clk 0:00:09.5]} 76... Kf3 {[%clk 0:00:15]} 77. h8=Q {[%clk 0:00:09.9]} 77...
Ke3 {[%clk 0:00:15.9]} 78. Qh3+ {[%clk 0:00:09.8]} 78... Kd4 {[%clk 0:00:16.2]}
79. Qf3 {[%clk 0:00:09.9]} 79... Kc5 {[%clk 0:00:16.2]} 80. Qd3 {[%clk
0:00:09.8]} 80... Kc6 {[%clk 0:00:16.4]} 81. Qd4 {[%clk 0:00:09.7]} 81... Kb5
{[%clk 0:00:14.9]} 82. Ke6 {[%clk 0:00:09.4]} 82... Kc6 {[%clk 0:00:14.9]} 83.
Qc4+ {[%clk 0:00:09.6]} 83... Kb6 {[%clk 0:00:14.3]} 84. Kd7 {[%clk 0:00:09.6]}
84... Kb7 {[%clk 0:00:15.1]} 85. Qb4+ {[%clk 0:00:09.3]} 85... Ka6 {[%clk
0:00:15.1]} 86. Kc7 {[%clk 0:00:08.9]} 86... Ka7 {[%clk 0:00:15.7]} 87. Qa5#
{[%clk 0:00:08.8]} 1-0

[Event "*** Titled Tuesday Blitz"]
[Site "Chess.com"]
[Date "2020.12.01"]
[Round "6"]
[White "Shubinkirill2003"]
[Black "Slovak_fighter2000"]
[Result "0-1"]
[WhiteElo "2697"]
[BlackElo "2554"]
[TimeControl "180+1"]
[EndTime "11:07:00 PST"]
[Termination "Slovak_fighter2000 won by resignation"]

1. e4 {[%clk 0:03:00.9]} 1... e6 {[%clk 0:02:59.8]} 2. d4 {[%clk 0:02:59.7]}
2... d5 {[%clk 0:03:00.1]} 3. Nc3 {[%clk 0:02:59.4]} 3... dxe4 {[%clk
0:02:59.2]} 4. Nxe4 {[%clk 0:02:59]} 4... Bd7 {[%clk 0:02:59]} 5. Nf3 {[%clk
0:02:58.8]} 5... Bc6 {[%clk 0:02:58.7]} 6. Bd3 {[%clk 0:02:59.4]} 6... Nd7
{[%clk 0:02:58.5]} 7. O-O {[%clk 0:02:58.9]} 7... Ngf6 {[%clk 0:02:58.6]} 8. Ng3
{[%clk 0:02:58.8]} 8... Bd6 {[%clk 0:02:57]} 9. c4 {[%clk 0:02:57.6]} 9... Bxf3
{[%clk 0:02:55.7]} 10. Qxf3 {[%clk 0:02:56.5]} 10... c6 {[%clk 0:02:56.2]} 11.
b3 {[%clk 0:02:56.3]} 11... O-O {[%clk 0:02:55.3]} 12. Bb2 {[%clk 0:02:56.3]}
12... a5 {[%clk 0:02:54.1]} 13. a3 {[%clk 0:02:52.6]} 13... Qc7 {[%clk
0:02:49.5]} 14. Rfe1 {[%clk 0:02:45]} 14... Rfe8 {[%clk 0:02:49.1]} 15. Nh5
{[%clk 0:02:41.1]} 15... Nxh5 {[%clk 0:02:47.6]} 16. Qxh5 {[%clk 0:02:42]} 16...
g6 {[%clk 0:02:45.8]} 17. Qh3 {[%clk 0:02:39]} 17... Bf8 {[%clk 0:02:44.1]} 18.
Rad1 {[%clk 0:02:34.6]} 18... Bg7 {[%clk 0:02:40.3]} 19. Qg3 {[%clk 0:02:34.9]}
19... Qxg3 {[%clk 0:02:36.9]} 20. hxg3 {[%clk 0:02:35.8]} 20... c5 {[%clk
0:02:26.6]} 21. Be4 {[%clk 0:02:34.2]} 21... Rab8 {[%clk 0:02:13.4]} 22. dxc5
{[%clk 0:02:21.4]} 22... Bxb2 {[%clk 0:01:54.3]} 23. Rxd7 {[%clk 0:02:20.4]}
23... Bxa3 {[%clk 0:01:53.7]} 24. Bxb7 {[%clk 0:02:20.2]} 24... Bxc5 {[%clk
0:01:51.4]} 25. Red1 {[%clk 0:02:19.6]} 25... Re7 {[%clk 0:01:39.4]} 26. Rd8+
{[%clk 0:02:16.9]} 26... Rxd8 {[%clk 0:01:36.8]} 27. Rxd8+ {[%clk 0:02:17.8]}
27... Kg7 {[%clk 0:01:37.1]} 28. Bc6 {[%clk 0:02:18.2]} 28... Rc7 {[%clk
0:01:34.5]} 29. Bb5 {[%clk 0:02:17.6]} 29... Bb4 {[%clk 0:01:32.5]} 30. Kf1
{[%clk 0:02:15.6]} 30... h5 {[%clk 0:01:31.1]} 31. Ke2 {[%clk 0:02:14.2]} 31...
Kf6 {[%clk 0:01:30.6]} 32. f4 {[%clk 0:02:13.7]} 32... Rc5 {[%clk 0:01:27.5]}
33. Kf3 {[%clk 0:02:12.5]} 33... Rc7 {[%clk 0:01:26.4]} 34. Ke4 {[%clk
0:02:11.1]} 34... Bc5 {[%clk 0:01:25.7]} 35. Kf3 {[%clk 0:02:07.9]} 35... Bb4
{[%clk 0:01:25.2]} 36. g4 {[%clk 0:02:07.8]} 36... hxg4+ {[%clk 0:01:24.7]} 37.
Kxg4 {[%clk 0:02:08.7]} 37... Bc5 {[%clk 0:01:21.7]} 38. Kf3 {[%clk 0:02:08.4]}
38... Bb4 {[%clk 0:01:21.7]} 39. Ke4 {[%clk 0:02:07.5]} 39... Bc5 {[%clk
0:01:21.5]} 40. g4 {[%clk 0:02:07.2]} 40... Bb4 {[%clk 0:01:19.7]} 41. Ra8
{[%clk 0:02:06.1]} 41... g5 {[%clk 0:01:14]} 42. Rg8 {[%clk 0:02:00.7]} 42...
Rc5 {[%clk 0:01:11.4]} 43. Ba4 {[%clk 0:01:46.8]} 43... gxf4 {[%clk 0:01:07.7]}
44. Kxf4 {[%clk 0:01:46.1]} 44... Bd2+ {[%clk 0:01:07.2]} 45. Ke4 {[%clk
0:01:45.9]} 45... Bb4 {[%clk 0:01:06.7]} 46. Be8 {[%clk 0:01:39.6]} 46... Ke7
{[%clk 0:00:45]} 47. Kd4 {[%clk 0:01:27.2]} 47... Rc7 {[%clk 0:00:34.4]} 48. g5
{[%clk 0:01:23.4]} 48... Rc5 {[%clk 0:00:30.8]} 49. Bb5 {[%clk 0:01:18]} 49...
Rf5 {[%clk 0:00:23.1]} 50. Ke3 {[%clk 0:01:01.6]} 50... Kd6 {[%clk 0:00:23.3]}
51. Rd8+ {[%clk 0:00:57.8]} 51... Ke5 {[%clk 0:00:23.8]} 52. Rg8 {[%clk
0:00:52]} 52... Bc5+ {[%clk 0:00:23.4]} 53. Kd3 {[%clk 0:00:51.7]} 53... Kf4
{[%clk 0:00:23.7]} 54. g6 {[%clk 0:00:51.2]} 54... fxg6 {[%clk 0:00:22.5]} 55.
Rxg6 {[%clk 0:00:51.6]} 55... Ke5 {[%clk 0:00:22.4]} 56. Bd7 {[%clk 0:00:50.1]}
56... Rf6 {[%clk 0:00:21.4]} 57. Rg5+ {[%clk 0:00:46.4]} 57... Rf5 {[%clk
0:00:21.8]} 58. Rg3 {[%clk 0:00:45.4]} 58... Kd6 {[%clk 0:00:20.9]} 59. Bb5
{[%clk 0:00:42]} 59... Re5 {[%clk 0:00:20.7]} 60. Rf3 {[%clk 0:00:39.1]} 60...
Rf5 {[%clk 0:00:20.6]} 61. Rh3 {[%clk 0:00:38.6]} 61... Rg5 {[%clk 0:00:20.3]}
62. Ke4 {[%clk 0:00:37.9]} 62... Rg4+ {[%clk 0:00:20.3]} 63. Kd3 {[%clk
0:00:33.7]} 63... Rg5 {[%clk 0:00:20.4]} 64. Ba4 {[%clk 0:00:33.1]} 64... Ke5
{[%clk 0:00:19.9]} 65. Rf3 {[%clk 0:00:29.2]} 65... Rf5 {[%clk 0:00:19]} 66. Rg3
{[%clk 0:00:28.3]} 66... Kd6 {[%clk 0:00:17.9]} 67. Ke4 {[%clk 0:00:27.3]} 67...
Re5+ {[%clk 0:00:18.3]} 68. Kf4 {[%clk 0:00:27]} 68... Rf5+ {[%clk 0:00:19.2]}
69. Kg4 {[%clk 0:00:26.4]} 69... Rf8 {[%clk 0:00:18.2]} 70. Rf3 {[%clk
0:00:23.3]} 70... Rxf3 {[%clk 0:00:17.8]} 71. Kxf3 {[%clk 0:00:24.2]} 71... Ke5
{[%clk 0:00:18.1]} 72. Bd7 {[%clk 0:00:23.5]} 72... Kd6 {[%clk 0:00:16.6]} 73.
Bc8 {[%clk 0:00:23.2]} 73... Ke5 {[%clk 0:00:16.3]} 74. Ke2 {[%clk 0:00:20.5]}
74... Kd4 {[%clk 0:00:14.6]} 75. Kd2 {[%clk 0:00:17.4]} 75... e5 {[%clk
0:00:13.6]} 76. Bg4 {[%clk 0:00:15.3]} 76... e4 {[%clk 0:00:13.2]} 77. Bf5
{[%clk 0:00:14.5]} 77... e3+ {[%clk 0:00:12.7]} 78. Ke2 {[%clk 0:00:14.5]} 78...
Kc3 {[%clk 0:00:12.2]} 79. Bc8 {[%clk 0:00:05.5]} 79... Kxb3 {[%clk 0:00:11.5]}
80. Kd3 {[%clk 0:00:05.9]} 80... a4 {[%clk 0:00:10.8]} 0-1

[Event "*** Titled Tuesday Blitz"]
[Site "Chess.com"]
[Date "2020.12.01"]
[Round "6"]
[White "Das_Virus_2020"]
[Black "vovachesss"]
[Result "0-1"]
[WhiteElo "2447"]
[BlackElo "2619"]
[TimeControl "180+1"]
[EndTime "11:07:05 PST"]
[Termination "vovachesss won by checkmate"]

1. e4 {[%clk 0:03:00]} 1... e5 {[%clk 0:02:57.6]} 2. Nc3 {[%clk 0:02:57.7]} 2...
g6 {[%clk 0:02:54.4]} 3. g3 {[%clk 0:02:57]} 3... Bg7 {[%clk 0:02:54.6]} 4. Bg2
{[%clk 0:02:57.3]} 4... d6 {[%clk 0:02:53.7]} 5. Nge2 {[%clk 0:02:57.5]} 5...
Ne7 {[%clk 0:02:53.5]} 6. d4 {[%clk 0:02:53.5]} 6... exd4 {[%clk 0:02:53.3]} 7.
Nxd4 {[%clk 0:02:53.2]} 7... O-O {[%clk 0:02:53.8]} 8. Be3 {[%clk 0:02:52.2]}
8... Nbc6 {[%clk 0:02:43.9]} 9. O-O {[%clk 0:02:51.1]} 9... Ne5 {[%clk
0:02:36.5]} 10. h3 {[%clk 0:02:39.6]} 10... Nc4 {[%clk 0:02:35.5]} 11. Bc1
{[%clk 0:02:38.4]} 11... Nc6 {[%clk 0:02:33.9]} 12. Nxc6 {[%clk 0:02:35]} 12...
bxc6 {[%clk 0:02:34.8]} 13. Qf3 {[%clk 0:02:12.3]} 13... Rb8 {[%clk 0:02:31.4]}
14. b3 {[%clk 0:02:06]} 14... Qf6 {[%clk 0:02:14.1]} 15. Qxf6 {[%clk 0:01:48.7]}
15... Bxf6 {[%clk 0:02:14.1]} 16. Bh6 {[%clk 0:01:48.4]} 16... Bxc3 {[%clk
0:02:12.7]} 17. Bxf8 {[%clk 0:01:44.9]} 17... Kxf8 {[%clk 0:01:53.1]} 18. bxc4
{[%clk 0:01:40.4]} 18... Bxa1 {[%clk 0:01:52.6]} 19. Rxa1 {[%clk 0:01:41.1]}
19... Rb2 {[%clk 0:01:51.2]} 20. e5 {[%clk 0:01:35.1]} 20... Rxc2 {[%clk
0:01:42.1]} 21. exd6 {[%clk 0:01:30.8]} 21... cxd6 {[%clk 0:01:43]} 22. Bxc6
{[%clk 0:01:29.1]} 22... Rxc4 {[%clk 0:01:43]} 23. Bg2 {[%clk 0:01:25.7]} 23...
Be6 {[%clk 0:01:37.6]} 24. a3 {[%clk 0:01:25]} 24... Ke7 {[%clk 0:01:25.4]} 25.
h4 {[%clk 0:01:24.7]} 25... d5 {[%clk 0:01:23.8]} 26. Bf1 {[%clk 0:01:17.5]}
26... Rc3 {[%clk 0:01:18.1]} 27. a4 {[%clk 0:01:12.9]} 27... d4 {[%clk
0:01:15.3]} 28. Rd1 {[%clk 0:01:09.6]} 28... Kd6 {[%clk 0:00:24.5]} 29. Rxd4+
{[%clk 0:01:07]} 29... Kc5 {[%clk 0:00:25.4]} 30. Rf4 {[%clk 0:00:45.5]} 30...
Rc1 {[%clk 0:00:24.9]} 31. Kg2 {[%clk 0:00:35.5]} 31... Bd5+ {[%clk 0:00:23.6]}
32. f3 {[%clk 0:00:35.2]} 32... Rc2+ {[%clk 0:00:23.8]} 33. Kg1 {[%clk
0:00:33.3]} 33... Rc1 {[%clk 0:00:18.8]} 34. Kf2 {[%clk 0:00:31.5]} 34... Rc2+
{[%clk 0:00:19.1]} 35. Ke3 {[%clk 0:00:29.2]} 35... Ra2 {[%clk 0:00:18.9]} 36.
Bb5 {[%clk 0:00:27.4]} 36... Ra3+ {[%clk 0:00:17.4]} 37. Kf2 {[%clk 0:00:26.7]}
37... Kb6 {[%clk 0:00:13.3]} 38. Be8 {[%clk 0:00:26]} 38... f5 {[%clk
0:00:09.8]} 39. g4 {[%clk 0:00:25.4]} 39... fxg4 {[%clk 0:00:09.3]} 40. fxg4
{[%clk 0:00:26.3]} 40... Kc5 {[%clk 0:00:07]} 41. h5 {[%clk 0:00:26.1]} 41...
gxh5 {[%clk 0:00:07.1]} 42. gxh5 {[%clk 0:00:27]} 42... Kd6 {[%clk 0:00:06]} 43.
Bf7 {[%clk 0:00:25.4]} 43... Ke5 {[%clk 0:00:05.2]} 44. Rb4 {[%clk 0:00:14.7]}
44... Bxf7 {[%clk 0:00:04.6]} 45. Rb7 {[%clk 0:00:15.1]} 45... Bxh5 {[%clk
0:00:04.5]} 46. Rxh7 {[%clk 0:00:14]} 46... Ra2+ {[%clk 0:00:02.9]} 47. Kg3
{[%clk 0:00:13.3]} 47... Ra3+ {[%clk 0:00:03.4]} 48. Kf2 {[%clk 0:00:13.5]}
48... Bg6 {[%clk 0:00:03.2]} 49. Rxa7 {[%clk 0:00:12.9]} 49... Be8 {[%clk
0:00:03.8]} 50. a5 {[%clk 0:00:12.9]} 50... Kd5 {[%clk 0:00:04.1]} 51. Ke2
{[%clk 0:00:11.4]} 51... Kc5 {[%clk 0:00:03.7]} 52. Kd2 {[%clk 0:00:11.1]} 52...
Ba4 {[%clk 0:00:02.5]} 53. Ke2 {[%clk 0:00:10.2]} 53... Bb5+ {[%clk 0:00:02.4]}
54. Kd2 {[%clk 0:00:10.4]} 54... Rh3 {[%clk 0:00:02.3]} 55. Kc2 {[%clk
0:00:09.5]} 55... Rh6 {[%clk 0:00:02.2]} 56. Kd2 {[%clk 0:00:09.6]} 56... Ba6
{[%clk 0:00:02.7]} 57. Kc3 {[%clk 0:00:09.5]} 57... Kb5 {[%clk 0:00:03.3]} 58.
Kd4 {[%clk 0:00:09.2]} 58... Kxa5 {[%clk 0:00:03.8]} 59. Re7 {[%clk 0:00:09.5]}
59... Kb6 {[%clk 0:00:03.8]} 60. Ke5 {[%clk 0:00:08.9]} 60... Rh1 {[%clk
0:00:04]} 61. Re6+ {[%clk 0:00:09]} 61... Kb5 {[%clk 0:00:04.4]} 62. Rd6 {[%clk
0:00:09.1]} 62... Bb7 {[%clk 0:00:04.3]} 63. Rd4 {[%clk 0:00:08.7]} 63... Re1+
{[%clk 0:00:04.4]} 64. Kf4 {[%clk 0:00:08.4]} 64... Kc5 {[%clk 0:00:04.5]} 65.
Rd2 {[%clk 0:00:08.5]} 65... Bd5 {[%clk 0:00:04.2]} 66. Kf5 {[%clk 0:00:07.3]}
66... Rf1+ {[%clk 0:00:04.4]} 67. Ke5 {[%clk 0:00:06.5]} 67... Re1+ {[%clk
0:00:05]} 68. Kf4 {[%clk 0:00:05.9]} 68... Re8 {[%clk 0:00:05.9]} 69. Kf5 {[%clk
0:00:05.7]} 69... Kd6 {[%clk 0:00:06]} 70. Kf4 {[%clk 0:00:05.8]} 70... Rf8+
{[%clk 0:00:06.3]} 71. Ke3 {[%clk 0:00:04.9]} 71... Ke5 {[%clk 0:00:06.1]} 72.
Rh2 {[%clk 0:00:04.8]} 72... Rf3+ {[%clk 0:00:05.8]} 73. Ke2 {[%clk 0:00:04.9]}
73... Ra3 {[%clk 0:00:06.7]} 74. Rh8 {[%clk 0:00:03.5]} 74... Kd4 {[%clk
0:00:06]} 75. Kf2 {[%clk 0:00:03.7]} 75... Ke5 {[%clk 0:00:03.8]} 76. Rf8 {[%clk
0:00:03.2]} 76... Be4 {[%clk 0:00:03.9]} 77. Re8+ {[%clk 0:00:02.6]} 77... Kf4
{[%clk 0:00:04.3]} 78. Rf8+ {[%clk 0:00:02.5]} 78... Bf5 {[%clk 0:00:04.8]} 79.
Rd8 {[%clk 0:00:02.1]} 79... Ra2+ {[%clk 0:00:05.1]} 80. Ke1 {[%clk 0:00:01.8]}
80... Ke3 {[%clk 0:00:05.4]} 81. Kd1 {[%clk 0:00:01.9]} 81... Ra1# {[%clk
0:00:04.8]} 0-1